bitfinex/quotes_SOLUSD_20251120
["timestamp","ask_amount","ask_price","bid_price","bid_amount"]
[1763631017853,16.81593384,142.31,142.28,2.66137445]
[1763631018155,16.81593384,142.31,142.29,1.7]
[1763631021632,16.81593384,142.31,142.27,0.72]
[1763631021870,16.81593384,142.31,142.28,5.08137445]
[1763631022232,16.81593384,142.31,142.27,2.66137445]
[1763631022428,16.81593384,142.31,142.29,1.7]
[1763631022937,16.81593384,142.31,142.3,1.7]
[1763631023438,19.47730829,142.31,142.3,1.7]
[1763631023656,16.81593384,142.31,142.3,1.7]
[1763631023870,25.14754441,142.32,142.3,1.7]
[1763631026254,9.78882769,142.31,142.28,0.72]
[1763631026465,12.45020214,142.31,142.29,1.7]
[1763631026665,12.45020214,142.31,142.3,1.7]
[1763631027359,16.81574076,142.31,142.3,1.7]
[1763631028963,7.02691307,142.31,142.3,2.42]
[1763631029346,7.02691307,142.31,142.3,1.7]
[1763631029653,7.02663072,142.32,142.3,2.42]
[1763631029845,9.78882769,142.33,142.31,0.72]
[1763631030041,16.81499848,142.33,142.31,0.72]
[1763631031049,16.81499848,142.33,142.3,1.7]
[1763631031245,16.81499848,142.33,142.3,2.42]
[1763631031451,12.45020214,142.32,142.27,9.69006839]
[1763631031670,2.66137445,142.3,142.28,1.7]
[1763631031958,2.66137445,142.3,142.27,0.72]
[1763631032179,2.66137445,142.31,142.29,1.7]
[1763631032738,2.66137445,142.31,142.29,2.42]
[1763631033467,7.02740688,142.3,142.29,2.42]
[1763631034140,37.04612623,142.3,142.26,0.72]
[1763631034471,37.04612623,142.3,142.27,1.7]
[1763631035243,37.04612623,142.3,142.28,1.7]
[1763631035571,37.04612623,142.3,142.29,1.7]
[1763631036451,43.44612623,142.3,142.29,1.7]
[1763631039080,18.12096,142.28,142.26,0.72]
[1763631039283,20.78233445,142.28,142.27,1.7]
[1763631039652,20.78233445,142.28,142.27,2.42]
[1763631040078,27.81072916,142.28,142.27,2.42]
[1763631040576,37.59955685,142.28,142.27,1.7]
[1763631040752,37.59955685,142.28,142.27,2.42]
[1763631041371,37.59955685,142.28,142.27,1.7]
[1763631041673,37.59955685,142.28,142.27,2.42]
[1763631041674,34.9381824,142.28,142.27,2.42]
[1763631042472,37.59955685,142.28,142.27,2.42]
[1763631045077,34.9381824,142.28,142.27,2.42]
[1763631045276,34.9381824,142.28,142.27,2.4]
[1763631046862,25.14935471,142.28,142.27,2.4]
[1763631047076,7.02798798,142.29,142.27,5.06137445]
[1763631047366,7.02798798,142.29,142.28,0.72]
[1763631047766,7.02754085,142.3,142.28,3.38137445]
[1763631048173,7.02754085,142.3,142.29,0.72]
[1763631049578,7.02709272,142.31,142.29,0.72]
[1763631050065,7.0265276,142.32,142.29,3.38137445]
[1763631050262,7.0265276,142.32,142.3,2.66137445]
[1763631050566,7.0265276,142.32,142.31,1.68]
[1763631050890,7.0265276,142.32,142.31,2.37]
[1763631051055,9.78882769,142.33,142.31,2.37]
[1763631051056,9.78882769,142.34,142.31,2.37]
[1763631051266,9.78882769,142.34,142.32,0.69]
[1763631051580,19.475659,142.34,142.32,0.69]
[1763631053487,2.66137445,142.33,142.32,0.69]
[1763631053668,16.81428455,142.34,142.32,0.69]
[1763631053866,19.475659,142.34,142.32,0.69]
[1763631055170,16.81428455,142.34,142.32,0.69]
[1763631055568,19.475659,142.34,142.32,0.69]
[1763631057692,9.68683131,142.34,142.32,0.69]
[1763631057889,7.0253481,142.35,142.32,3.35137445]
[1763631058193,7.0253481,142.35,142.32,0.69]
[1763631058374,7.0253481,142.35,142.33,0.69]
[1763631059387,2.66137445,142.34,142.33,0.69]
[1763631059597,9.68672255,142.35,142.33,2.37]
[1763631059981,27.24906887,142.35,142.3,2.66137445]
[1763631060289,27.24906887,142.35,142.28,7.02819217]
[1763631060290,37.03789656,142.35,142.34,1.68]
[1763631060495,34.37652211,142.35,142.34,1.68]
[1763631060677,37.03789656,142.35,142.34,2.37]
[1763631060878,38.52933693,142.35,142.34,2.37]
[1763631063194,34.37652211,142.35,142.34,2.37]
[1763631063494,34.37652211,142.35,142.34,0.69]
[1763631063796,34.37652211,142.35,142.34,2.37]
[1763631064288,38.52933693,142.35,142.34,2.37]
[1763631064971,34.37652211,142.35,142.34,2.37]
[1763631065195,24.58769442,142.35,142.34,0.69]
[1763631065371,24.58769442,142.35,142.34,2.37]
[1763631066093,7.0253481,142.35,142.34,2.37]
[1763631066992,7.02444506,142.36,142.34,2.37]
[1763631067302,7.02444506,142.36,142.35,0.69]
[1763631068574,45.66749127,142.39,142.35,4.84281482]
[1763631068776,7.02345835,142.38,142.35,4.84281482]
[1763631068976,7.02345835,142.38,142.36,4.84281482]
[1763631069177,7.02345835,142.38,142.36,0.69]
[1763631069479,7.02345835,142.38,142.37,0.69]
[1763631069914,7.22314162,142.39,142.37,0.69]
[1763631070116,7.22314162,142.39,142.38,1.68]
[1763631070394,0.2,142.39,142.38,1.68]
[1763631070598,7.22296509,142.39,142.38,2.37]
[1763631070982,0.2,142.39,142.38,2.37]
[1763631071499,0.2,142.39,142.38,6.52281482]
[1763631074689,0.2,142.39,142.38,13.54627317]
[1763631076490,0.2,142.39,142.38,17.69908799]
[1763631076802,0.2,142.39,142.38,13.54627317]
[1763631077313,0.2,142.39,142.38,17.69908799]
[1763631077809,0.2,142.39,142.38,13.54627317]
[1763631078397,0.2,142.39,142.38,17.69908799]
[1763631079798,0.2,142.39,142.38,35.82004799]
[1763631080802,0.2,142.39,142.38,87.30324604]
[1763631081100,0.2,142.39,142.38,85.82004799]
[1763631083614,0.2,142.39,142.38,25.83441835]
[1763631083813,0.2,142.39,142.38,35.82004799]
[1763631085914,21.07703656,142.45,142.38,53.37869386]
[1763631086090,21.07703656,142.45,142.44,4.15281482]
[1763631086296,28.09704358,142.45,142.44,5.83281482]
[1763631086496,21.07703656,142.45,142.44,6.55281482]
[1763631087800,7.21972188,142.46,142.44,6.55281482]
[1763631088007,24.77501253,142.46,142.45,4.15281482]
[1763631088210,0.2,142.46,142.45,9.00562964]
[1763631088719,0.2,142.47,142.45,27.12658964]
[1763631088910,0.2,142.47,142.46,4.85281482]
[1763631089715,0.2,142.47,142.46,13.55232906]
[1763631090320,0.2,142.47,142.46,7.71951424]
[1763631090526,0.2,142.47,142.46,13.55232906]
[1763631091899,0.2,142.47,142.46,2.38]
[1763631092098,0.2,142.47,142.46,6.53281482]
[1763631092327,0.2,142.47,142.46,13.55232906]
[1763631092716,0.2,142.47,142.46,6.53281482]
[1763631094926,0.2,142.47,142.46,13.55232906]
[1763631095304,0.2,142.47,142.46,9.39951424]
[1763631095625,0.2,142.47,142.46,13.55232906]
[1763631096329,0.2,142.47,142.46,6.53281482]
[1763631096708,0.2,142.47,142.44,34.98096]
[1763631097017,0.2,142.47,142.46,4.15281482]
[1763631097412,0.2,142.47,142.46,4.85281482]
[1763631098228,0.2,142.47,142.44,0.7]
[1763631098427,0.2,142.47,142.46,1.68]
[1763631098729,0.2,142.47,142.46,5.83281482]
[1763631099104,7.21902154,142.47,142.46,1.68]
[1763631099414,7.21902154,142.47,142.46,5.83281482]
[1763631099617,0.2,142.47,142.46,6.53281482]
[1763631101510,0.2,142.47,142.46,5.83281482]
[1763631102114,0.2,142.47,142.46,6.53281482]
[1763631105719,0.2,142.47,142.46,5.83281482]
[1763631105913,0.2,142.47,142.46,6.53281482]
[1763631106533,0.2,142.47,142.46,2.38]
[1763631107042,0.2,142.47,142.46,6.53281482]
[1763631108640,0.2,142.47,142.46,5.83281482]
[1763631108843,0.2,142.47,142.46,6.53281482]
[1763631113337,0.2,142.47,142.46,2.38]
[1763631113645,0.2,142.47,142.46,6.53281482]
[1763631114035,7.21935039,142.47,142.46,1.68]
[1763631115749,7.21935039,142.47,142.46,5.83281482]
[1763631115750,0.2,142.47,142.46,5.83281482]
[1763631115938,0.2,142.47,142.46,6.51281482]
[1763631116130,7.21902154,142.47,142.46,6.51281482]
[1763631116650,0.2,142.47,142.46,6.51281482]
[1763631116849,0.2,142.47,142.46,5.83281482]
[1763631117161,0.2,142.47,142.46,6.51281482]
[1763631119450,0.2,142.47,142.46,2.36]
[1763631119956,0.2,142.47,142.46,6.51281482]
[1763631122650,0.2,142.47,142.46,2.36]
[1763631123436,0.2,142.47,142.46,0.68]
[1763631123647,0.2,142.47,142.46,5.01246493]
[1763631124449,0.2,142.47,142.46,2.36]
[1763631124632,10.07148647,142.47,142.42,0.68]
[1763631124833,2.85246493,142.46,142.43,1.68]
[1763631125034,7.02000702,142.45,142.43,1.68]
[1763631125248,7.02000702,142.45,142.43,2.36]
[1763631127255,7.02000702,142.45,142.43,1.68]
[1763631127435,7.02000702,142.45,142.43,2.36]
[1763631127639,9.67247195,142.45,142.43,2.36]
[1763631128357,9.67247195,142.45,142.43,1.68]
[1763631128936,7.02000702,142.45,142.43,1.68]
[1763631129261,9.87247195,142.45,142.41,16.86]
[1763631129470,9.87247195,142.45,142.42,1.68]
[1763631129637,44.2824895,142.45,142.42,2.36]
[1763631130143,2.65246493,142.44,142.42,2.36]
[1763631130339,9.05246493,142.44,142.42,2.36]
[1763631130541,6.4,142.44,142.43,0.68]
[1763631130750,6.4,142.44,142.43,3.33246493]
[1763631132257,0.2,142.47,142.43,3.33246493]
[1763631132440,17.06,142.47,142.45,2.65246493]
[1763631132640,17.06,142.47,142.46,1.68]
[1763631132868,0.2,142.47,142.46,5.01246493]
[1763631134763,0.2,142.47,142.46,2.36]
[1763631135361,7.21902154,142.47,142.46,2.36]
[1763631136062,7.21902154,142.47,142.45,2.65246493]
[1763631136365,7.21902154,142.47,142.46,1.68]
[1763631137066,14.51902154,142.47,142.46,1.68]
[1763631137266,7.5,142.47,142.46,5.01246493]
[1763631137468,0.2,142.47,142.46,5.01246493]
[1763631139367,0.2,142.47,142.46,12.03197917]
[1763631143387,0.2,142.47,142.46,47.71489059]
[1763631143554,0.2,142.48,142.46,47.71489059]
[1763631143752,0.2,142.48,142.47,3.35246493]
[1763631144650,0.2,142.48,142.47,10.37148647]
[1763631145051,0.2,142.48,142.47,60.37148647]
[1763631145247,0.2612041,142.5,142.47,27.91904034]
[1763631145555,0.2612041,142.5,142.49,2.65246493]
[1763631146050,0.2612041,142.5,142.49,3.35246493]
[1763631146967,0.2612041,142.5,142.49,10.37050128]
[1763631149321,10.33139078,142.5,142.44,2.65246493]
[1763631149477,2.65246493,142.49,142.45,1.68]
[1763631149679,0.4,142.49,142.45,4.33246493]
[1763631149890,7.7,142.49,142.45,5.04246493]
[1763631150105,7.7,142.49,142.45,4.33246493]
[1763631150403,7.01902154,142.47,142.45,1.68]
[1763631150801,7.41902154,142.47,142.46,1.68]
[1763631151809,7.41902154,142.47,142.44,2.65246493]
[1763631152107,7.41902154,142.47,142.46,1.68]
[1763631155006,10.07148647,142.47,142.46,1.68]
[1763631155587,2.65246493,142.47,142.46,1.68]
[1763631155791,9.67148647,142.47,142.46,1.68]
[1763631158507,10.07148647,142.47,142.46,1.68]
[1763631159799,17.37148647,142.47,142.46,1.68]
[1763631159995,10.07148647,142.47,142.46,1.68]
[1763631160201,24.96482166,142.47,142.46,1.68]
[1763631160513,10.07148647,142.47,142.46,1.68]
[1763631160714,19.74538946,142.47,142.46,1.68]
[1763631162612,29.53421715,142.47,142.46,1.68]
[1763631162989,26.88175222,142.47,142.46,1.68]
[1763631163310,29.53421715,142.47,142.46,1.68]
[1763631163693,9.67109512,142.48,142.46,1.68]
[1763631163894,7.01863019,142.48,142.46,2.39]
[1763631164412,28.17099179,142.5,142.47,0.71]
[1763631164413,13.10249672,142.5,142.47,0.71]
[1763631164613,2.65246493,142.49,142.46,2.39]
[1763631165109,2.65246493,142.49,142.46,1.68]
[1763631165415,2.65246493,142.49,142.47,0.71]
[1763631165915,31.00543375,142.5,142.47,0.71]
[1763631166212,19.72018607,142.5,142.47,0.71]
[1763631166400,28.41960018,142.5,142.47,0.71]
[1763631167717,0.2612041,142.5,142.47,0.71]
[1763631168013,7.27888065,142.5,142.47,0.71]
[1763631168218,2.65246493,142.49,142.42,35.67418147]
[1763631168391,2.65246493,142.49,142.44,2.65246493]
[1763631168595,2.65246493,142.49,142.45,0.71]
[1763631168796,9.67092152,142.49,142.45,0.71]
[1763631168997,2.65246493,142.48,142.46,1.68]
[1763631169903,7.3,142.47,142.46,1.68]
[1763631170107,9.6710379,142.48,142.46,2.39]
[1763631170301,10.0710379,142.48,142.46,1.68]
[1763631170490,2.65246493,142.47,142.46,1.68]
[1763631170691,7.41857297,142.48,142.46,1.68]
[1763631170895,9.6710379,142.48,142.46,1.68]
[1763631172602,10.0710379,142.48,142.46,1.68]
[1763631172919,3.05246493,142.47,142.43,0.7]
[1763631173101,3.05246493,142.47,142.44,1.68]
[1763631173300,2.65246493,142.46,142.44,1.68]
[1763631173508,2.65246493,142.45,142.44,1.68]
[1763631173701,3.05246493,142.46,142.44,1.68]
[1763631174319,2.65246493,142.46,142.44,1.68]
[1763631174505,9.67226776,142.46,142.44,1.68]
[1763631174835,6.4,142.45,142.44,2.38]
[1763631175144,6.4,142.45,142.44,11.35296478]
[1763631175300,6.4,142.45,142.44,8.70049985]
[1763631175496,2.65246493,142.49,142.44,11.35296478]
[1763631175697,2.65246493,142.49,142.45,0.7]
[1763631176394,3.05246493,142.49,142.45,0.7]
[1763631176593,10.07059806,142.49,142.45,0.7]
[1763631177195,3.05246493,142.49,142.45,0.7]
[1763631177413,2.65246493,142.47,142.46,1.68]
[1763631177611,3.05246493,142.47,142.46,1.68]
[1763631178025,2.65246493,142.47,142.46,1.68]
[1763631178418,9.67148647,142.47,142.46,1.68]
[1763631178833,12.48156058,142.47,142.46,1.68]
[1763631179212,7.01902154,142.47,142.46,2.38]
[1763631179416,0.2612041,142.5,142.46,2.38]
[1763631179621,0.2612041,142.5,142.47,0.7]
[1763631179622,9.67358686,142.49,142.47,0.7]
[1763631180230,2.91366903,142.5,142.47,0.7]
[1763631180231,0.2612041,142.5,142.47,0.7]
[1763631180428,7.27881929,142.5,142.47,0.7]
[1763631180627,0.2612041,142.5,142.47,0.7]
[1763631181209,0.2612041,142.5,142.47,7.71897305]
[1763631181414,7.27883288,142.5,142.48,0.7]
[1763631181622,7.27883288,142.5,142.49,1.68]
[1763631182523,0.2612041,142.5,142.49,1.68]
[1763631183141,0.2612041,142.5,142.49,2.38]
[1763631183440,0.2612041,142.5,142.49,1.68]
[1763631185342,11.8220519,142.5,142.46,0.7]
[1763631185519,7.27874795,142.5,142.47,2.38]
[1763631185718,4.14330395,142.49,142.47,1.68]
[1763631185926,4.14330395,142.49,142.47,0.7]
[1763631186242,4.14330395,142.49,142.48,1.68]
[1763631186744,28.97268154,142.5,142.48,1.68]
[1763631186953,4.14330395,142.49,142.48,1.68]
[1763631188442,24.82937759,142.5,142.48,1.68]
[1763631188632,11.1613403,142.49,142.48,1.68]
[1763631189024,7.01803635,142.49,142.48,1.68]
[1763631189222,11.5613403,142.49,142.44,0.7]
[1763631189426,4.14330395,142.48,142.45,1.68]
[1763631189640,4.14330395,142.48,142.45,2.38]
[1763631190053,24.96312723,142.49,142.46,0.7]
[1763631190054,24.56312723,142.49,142.46,0.7]
[1763631190222,28.70643118,142.49,142.46,0.7]
[1763631190550,18.18303096,142.48,142.46,0.7]
[1763631190852,22.32633491,142.48,142.45,1.68]
[1763631191054,4.14330395,142.47,142.45,1.68]
[1763631191244,15.30744977,142.47,142.43,7.02084187]
[1763631191548,15.30744977,142.47,142.46,1.68]
[1763631192119,15.70744977,142.47,142.46,1.68]
[1763631192726,22.72647131,142.47,142.46,1.68]
[1763631193150,30.02647131,142.47,142.46,1.68]
[1763631193445,22.72647131,142.47,142.46,1.68]
[1763631193760,22.32647131,142.47,142.46,1.68]
[1763631194467,0.2612041,142.5,142.46,2.38]
[1763631194763,11.42598941,142.5,142.47,0.7]
[1763631194971,15.56929336,142.5,142.47,0.7]
[1763631195251,18.44387272,142.5,142.47,0.7]
[1763631195457,22.58717667,142.5,142.48,1.68]
[1763631195630,22.66426395,142.49,142.44,0.7]
[1763631195832,4.14330395,142.46,142.45,1.68]
[1763631196255,11.16458093,142.46,142.45,1.68]
[1763631196440,7.02127698,142.46,142.45,1.68]
[1763631196748,14.04079122,142.46,142.45,1.68]
[1763631196949,14.04079122,142.46,142.45,2.38]
[1763631198155,14.31951424,142.46,142.45,2.38]
[1763631198854,7.3,142.46,142.45,2.38]
[1763631201359,14.31957487,142.46,142.42,4.14330395]
[1763631201531,18.46287882,142.46,142.43,2.34]
[1763631202036,32.78245369,142.46,142.43,2.34]
[1763631202242,32.78245369,142.46,142.44,0.66]
[1763631202856,18.46287882,142.46,142.44,0.66]
[1763631203036,18.46287882,142.46,142.43,1.68]
[1763631203234,18.46287882,142.46,142.43,2.34]
[1763631203635,11.16287882,142.46,142.44,0.66]
[1763631203866,7.01957487,142.46,142.44,0.66]
[1763631204064,11.16287882,142.46,142.44,0.66]
[1763631204648,7.01919873,142.47,142.43,1.68]
[1763631204848,22.26426395,142.49,142.45,0.66]
[1763631205163,22.26426395,142.49,142.46,1.68]
[1763631205369,4.14330395,142.48,142.46,1.68]
[1763631205548,4.14330395,142.48,142.46,2.34]
[1763631205860,25.13910479,142.49,142.46,2.34]
[1763631206066,7.3,142.47,142.46,2.34]
[1763631206264,7.3,142.47,142.46,1.68]
[1763631206459,11.16229382,142.48,142.46,1.68]
[1763631207466,4.14330395,142.48,142.46,1.68]
[1763631207662,29.28248393,142.49,142.46,2.34]
[1763631207873,4.14330395,142.48,142.46,2.34]
[1763631209150,11.16216392,142.48,142.46,2.34]
[1763631209769,7.01885997,142.48,142.46,2.34]
[1763631210471,7.01885997,142.48,142.47,0.66]
[1763631211044,14.31885997,142.48,142.46,1.68]
[1763631211262,7.01885997,142.48,142.46,2.34]
[1763631211487,11.16216392,142.48,142.46,2.34]
[1763631213779,7.0181814,142.49,142.47,0.66]
[1763631215962,7.3,142.48,142.47,0.66]
[1763631216172,7.27889859,142.5,142.47,0.66]
[1763631216460,0.2612041,142.5,142.47,7.67896398]
[1763631216694,0.2612041,142.5,142.47,11.82226793]
[1763631216857,0.2612041,142.5,142.48,0.66]
[1763631217057,0.2612041,142.5,142.49,1.68]
[1763631217691,0.2612041,142.5,142.49,2.34]
[1763631219369,0.2612041,142.5,142.49,9.35803635]
[1763631219781,0.2612041,142.5,142.49,2.34]
[1763631219978,0.2612041,142.5,142.49,9.35803635]
[1763631222672,0.2612041,142.5,142.49,13.5013403]
[1763631225262,0.2612041,142.5,142.49,9.35803635]
[1763631225474,0.2612041,142.5,142.49,13.5013403]
[1763631226794,0.2612041,142.5,142.49,9.35803635]
[1763631226966,0.2612041,142.5,142.49,13.5013403]
[1763631228574,0.2612041,142.5,142.49,7.67803635]
[1763631228774,0.2612041,142.5,142.49,13.5013403]
[1763631235781,0.2612041,142.5,142.49,11.8213403]
[1763631235985,0.2612041,142.5,142.49,13.5013403]
[1763631236199,0.2612041,142.5,142.49,9.35803635]
[1763631236490,0.2612041,142.5,142.49,13.5013403]
[1763631240114,0.2612041,142.5,142.49,9.35803635]
[1763631240309,0.2612041,142.5,142.49,13.5013403]
[1763631241517,0.2612041,142.5,142.49,9.35803635]
[1763631241814,0.2612041,142.5,142.49,13.5013403]
[1763631242811,0.2612041,142.5,142.49,11.8213403]
[1763631242993,0.2612041,142.5,142.49,13.5013403]
[1763631244712,0.2612041,142.5,142.49,6.48330395]
[1763631245015,0.2612041,142.5,142.49,4.99080366]
[1763631246813,0.2612041,142.5,142.49,12.00884001]
[1763631247123,0.2612041,142.5,142.49,30.12980001]
[1763631247410,0.2612041,142.5,142.49,23.11176366]
[1763631247621,10.32955161,142.5,142.47,16.84]
[1763631247802,10.32955161,142.5,142.48,1.68]
[1763631247803,2.65080366,142.49,142.48,1.68]
[1763631247993,3.05080366,142.49,142.48,1.68]
[1763631248503,0.4,142.49,142.48,1.68]
[1763631248719,7.7,142.49,142.48,1.68]
[1763631248907,25.22260759,142.5,142.48,1.68]
[1763631249210,0.4,142.49,142.48,1.68]
[1763631249918,25.22260759,142.5,142.48,1.68]
[1763631250101,0.4,142.49,142.48,1.68]
[1763631251220,7.41803635,142.49,142.48,1.68]
[1763631253616,14.71803635,142.49,142.48,1.68]
[1763631254244,14.31803635,142.49,142.48,1.68]
[1763631254716,14.71803635,142.49,142.48,1.68]
[1763631254917,7.3,142.49,142.48,5.02080366]
[1763631255119,0.2612041,142.5,142.48,5.02080366]
[1763631255343,0.2612041,142.5,142.49,3.34080366]
[1763631256420,7.27874795,142.5,142.49,3.34080366]
[1763631256814,0.2612041,142.5,142.49,3.34080366]
[1763631258235,0.2612041,142.5,142.49,10.35884001]
[1763631259332,0.2612041,142.5,142.49,0.69]
[1763631259527,0.2612041,142.5,142.49,3.34080366]
[1763631259818,0.2612041,142.5,142.49,10.35884001]
[1763631260019,0.2612041,142.5,142.49,3.34080366]
[1763631260444,0.2612041,142.5,142.49,10.35884001]
[1763631261735,0.2612041,142.5,142.49,7.70803635]
[1763631261932,0.2612041,142.5,142.49,12.03884001]
[1763631262129,0.2612041,142.5,142.49,10.35884001]
[1763631262328,0.2612041,142.5,142.49,12.03884001]
[1763631263232,0.2612041,142.5,142.49,5.02080366]
[1763631264138,0.2612041,142.5,142.49,3.34080366]
[1763631264648,0.2612041,142.5,142.49,5.02080366]
[1763631264844,0.2612041,142.5,142.49,0.69]
[1763631265052,0.2612041,142.5,142.47,3.37080366]
[1763631265346,7.67874795,142.5,142.48,1.68]
[1763631265548,7.67874795,142.5,142.48,4.33080366]
[1763631265745,0.2612041,142.5,142.49,3.37080366]
[1763631266458,0.2612041,142.5,142.49,10.38884001]
[1763631271658,0.2612041,142.5,142.49,60.38884001]
[1763631271865,0.2612041,142.5,142.49,62.06884001]
[1763631272163,0.2612041,142.5,142.49,7.73803635]
[1763631272358,0.2612041,142.5,142.49,12.06884001]
[1763631284289,0.2612041,142.5,142.49,10.38884001]
[1763631284456,0.2612041,142.5,142.49,12.06884001]
[1763631285285,0.2612041,142.5,142.49,1.68]
[1763631287072,0.2612041,142.5,142.49,2.34]
[1763631287485,0.2612041,142.5,142.49,1.68]
[1763631288283,0.2612041,142.5,142.49,11.34884001]
[1763631290700,0.2612041,142.5,142.49,12.06884001]
[1763631294298,0.2612041,142.5,142.49,5.05080366]
[1763631294799,0.2612041,142.5,142.49,12.06884001]
[1763631296087,0.2612041,142.5,142.49,10.38884001]
[1763631296290,0.2612041,142.5,142.49,12.06884001]
[1763631296704,0.2612041,142.5,142.49,5.05080366]
[1763631298282,0.2612041,142.5,142.49,12.06884001]
[1763631300508,0.6612041,142.5,142.48,9.66919255]
[1763631300701,0.6612041,142.5,142.49,1.68]
[1763631301193,0.2612041,142.5,142.49,1.68]
[1763631301373,10.3296932,142.5,142.46,16.84]
[1763631301573,2.65080366,142.49,142.47,1.68]
[1763631301786,3.05080366,142.49,142.47,1.68]
[1763631301988,0.4,142.48,142.47,1.68]
[1763631304207,7.0181529,142.49,142.47,1.68]
[1763631304503,0.2612041,142.5,142.48,3.37080366]
[1763631304703,0.2612041,142.5,142.49,4.33080366]
[1763631304910,0.6612041,142.5,142.47,11.88106074]
[1763631305137,0.6612041,142.5,142.46,16.84]
[1763631305138,11.8209116,142.5,142.46,16.84]
[1763631305408,0.4,142.49,142.48,1.68]
[1763631305602,4.54216365,142.49,142.48,1.68]
[1763631306314,0.4,142.49,142.48,1.68]
[1763631306703,7.41803635,142.49,142.48,1.68]
[1763631307107,11.5602,142.49,142.48,1.68]
[1763631307309,7.41803635,142.49,142.48,1.68]
[1763631307500,7.27896423,142.5,142.48,1.68]
[1763631307801,6.6,142.49,142.48,1.68]
[1763631310331,14.01803635,142.49,142.48,1.68]
[1763631312033,7.01803635,142.49,142.48,1.68]
[1763631312418,7.67891609,142.5,142.48,1.68]
[1763631314634,11.82107974,142.5,142.48,1.68]
[1763631315151,0.6612041,142.5,142.48,1.68]
[1763631315441,7.27878991,142.5,142.48,1.68]
[1763631315933,7.67878991,142.5,142.48,1.68]
[1763631316132,11.82095356,142.5,142.48,1.68]
[1763631318737,0.2612041,142.5,142.48,1.68]
[1763631318941,6.6,142.49,142.48,1.68]
[1763631320017,6.6,142.49,142.46,11.88146079]
[1763631320244,6.6,142.49,142.47,0.68]
[1763631321144,10.74216365,142.49,142.46,7.69929714]
[1763631321619,11.14216365,142.49,142.46,7.01929714]
[1763631321815,17.76036659,142.49,142.46,7.01929714]
[1763631322029,18.16036659,142.49,142.46,7.01929714]
[1763631322232,11.56036659,142.49,142.46,7.01929714]
[1763631322647,11.56036659,142.49,142.46,7.69929714]
[1763631324028,17.76036659,142.49,142.46,7.69929714]
[1763631324341,11.16036659,142.49,142.46,7.69929714]
[1763631324640,7.01820294,142.49,142.46,7.69929714]
[1763631325256,0.2612041,142.5,142.47,4.82216365]
[1763631325621,0.2612041,142.5,142.48,0.68]
[1763631325827,7.27876918,142.5,142.48,0.68]
[1763631326344,7.27876918,142.5,142.46,11.16146079]
[1763631326522,7.27876918,142.5,142.47,0.68]
[1763631326723,0.2612041,142.5,142.47,7.69879965]
[1763631326925,0.2612041,142.5,142.49,4.14216365]
[1763631327430,0.2612041,142.5,142.49,4.82216365]
[1763631329352,0.2612041,142.5,142.49,11.8402]
[1763631330940,0.2612041,142.5,142.49,7.69803635]
[1763631331146,0.2612041,142.5,142.49,7.01803635]
[1763631331450,0.2612041,142.5,142.48,7.01842011]
[1763631331652,0.2612041,142.5,142.47,69.79883693]
[1763631332152,4.40336775,142.5,142.47,69.79883693]
[1763631332345,4.14216365,142.49,142.46,7.01929441]
[1763631332531,4.54216365,142.49,142.46,7.01929441]
[1763631332732,4.54216365,142.49,142.46,7.69929441]
[1763631332948,18.12096379,142.5,142.46,7.69929441]
[1763631333146,11.82096379,142.5,142.47,0.68]
[1763631334029,4.80336775,142.5,142.47,7.69889025]
[1763631334226,0.2612041,142.5,142.47,7.69889025]
[1763631334460,0.2612041,142.5,142.48,4.82216365]
[1763631336150,0.2612041,142.5,142.48,11.84037771]
[1763631336447,0.2612041,142.5,142.48,7.69821406]
[1763631337050,0.2612041,142.5,142.48,11.84037771]
[1763631337237,0.2612041,142.5,142.48,7.69821406]
[1763631338247,0.2612041,142.5,142.48,11.84037771]